bitfinex-derivatives/quotes_ETHF0:USTF0_20250712
["timestamp","ask_amount","ask_price","bid_price","bid_amount"]
[1752329894233,6.7255,2946.7,2946.6,10.25651]
[1752329894432,7.14354,2946.9,2946.8,3.0579]
[1752329894941,7.14354,2946.9,2946.8,2.1294]
[1752329895634,7.14354,2946.9,2946.8,1.20818893]
[1752329896231,7.14354,2946.9,2946.8,3.33758893]
[1752329897938,7.14354,2946.9,2946.8,1.20818893]
[1752329898339,0.67846,2946.8,2946.7,3.33758893]
[1752329898641,7.08776,2946.8,2946.7,2.80788]
[1752329898837,2.86328,2946.7,2946.6,5.02014436]
[1752329899038,7.08778,2946.7,2946.6,6.54479222]
[1752329899343,7.08778,2946.7,2946.6,7.50099222]
[1752329901042,7.08778,2946.7,2946.6,11.36480222]
[1752329901043,6.4093,2946.7,2946.6,11.36480222]
[1752329901241,7.08778,2946.7,2946.6,10.68629222]
[1752329902243,7.08778,2946.7,2946.6,11.36480222]
[1752329902646,7.08778,2946.7,2946.6,10.68629222]
[1752329903041,7.08778,2946.7,2946.6,5.3372]
[1752329904148,7.08778,2946.7,2946.6,6.54479222]
[1752329904446,7.08778,2946.7,2946.6,5.3372]
[1752329904645,7.08778,2946.7,2946.6,2.1294]
[1752329905152,7.08778,2946.7,2946.6,3.33699222]
[1752329905440,7.08778,2946.7,2946.6,8.15700222]
[1752329905639,6.4093,2946.7,2946.6,8.15700222]
[1752329906142,1.69596,2947.2,2946.9,0.67843]
[1752329906346,6.17404,2947.0,2946.9,2.1294]
[1752329906845,7.08774,2947.0,2946.9,2.1294]
[1752329907947,7.08774,2947.0,2946.9,6.94934]
[1752329908143,5.4956,2947.0,2946.9,6.94934]
[1752329908338,6.17401,2947.0,2946.9,6.94934]
[1752329908948,7.08771,2947.0,2946.9,6.94934]
[1752329909247,7.08774,2946.9,2946.8,6.95063436]
[1752329909444,7.08774,2946.9,2946.8,5.13829]
[1752329910747,7.08774,2946.9,2946.8,6.34669828]
[1752329913750,7.08774,2946.9,2946.8,1.20840828]
[1752329914557,7.08776,2946.8,2946.7,3.94174436]
[1752329915954,8.17130676,2946.8,2946.7,1.81234436]
[1752329920455,7.08781,2946.6,2946.5,2.41725359]
[1752329920655,7.08783,2946.5,2946.4,2.41725359]
[1752329922154,3.0985,2946.1,2945.8,2.39049666]
[1752329922359,10.70064676,2945.9,2945.5,4.1415]
[1752329922658,7.08804,2945.6,2945.5,6.2709]
[1752329924549,2.86354,2945.6,2945.5,6.2709]
[1752329924758,7.16544,2945.6,2945.5,6.2709]
[1752329927453,7.16544,2945.6,2945.5,7.48119495]
[1752329928248,8.24898676,2945.6,2945.5,3.34089495]
[1752329928654,8.24898676,2945.6,2945.5,4.32469495]
[1752329928857,8.24898676,2945.6,2945.5,7.51339495]
[1752329929463,8.24898676,2945.6,2945.5,6.3031]
[1752329934266,7.16544,2945.6,2945.5,6.3031]
[1752329934462,6.25174,2945.6,2945.5,6.3031]
[1752329934668,7.22424,2945.6,2945.5,6.3031]
[1752329935263,2.86354,2945.6,2945.5,6.98186]
[1752329935566,0.67869,2945.9,2945.8,1.66248]
[1752329935862,0.67869,2945.9,2945.8,6.98178]
[1752329936167,0.67869,2945.9,2945.8,6.3031]
[1752329936168,7.32339,2945.9,2945.8,6.3031]
[1752329936767,7.32339,2945.9,2945.8,6.98179]
[1752329937267,2.96267,2945.9,2945.8,6.98179]
[1752329937463,3.93517,2945.9,2945.8,6.98179]
[1752329937662,7.32337,2945.9,2945.8,6.98179]
[1752329938162,8.40691676,2945.9,2945.8,6.3031]
[1752329938369,8.40691676,2945.9,2945.8,2.1306]
[1752329939169,8.40691676,2945.9,2945.8,6.3031]
[1752329940168,7.32337,2945.9,2945.8,6.3031]
[1752329940771,3.93524,2945.6,2945.5,6.98185]
[1752329941070,7.32344,2945.6,2945.5,6.98185]
[1752329941770,7.32344,2945.6,2945.5,6.3031]
[1752329942468,7.32344,2945.6,2945.5,6.98186]
[1752329942665,6.6447,2945.6,2945.5,6.98186]
[1752329942869,6.6447,2945.6,2945.5,8.19215495]
[1752329942870,2.284,2945.6,2945.5,8.19215495]
[1752329943572,0.67871,2945.8,2945.7,5.99801]
[1752329943773,2.96265,2946.1,2946.0,0.67863]
[1752329943970,2.96265,2946.1,2946.0,6.98173]
[1752329944171,7.32335,2946.1,2946.0,6.3031]
[1752329945073,7.32335,2946.1,2946.0,6.98174]
[1752329945372,7.32335,2946.1,2946.0,6.3031]
[1752329945569,7.32335,2946.1,2946.0,7.51339495]
[1752329946169,7.32335,2946.1,2946.0,6.3031]
[1752329946368,7.32335,2946.1,2946.0,7.51339495]
[1752329946870,7.32335,2946.1,2946.0,8.19203495]
[1752329947168,2.284,2946.3,2946.2,2.80918]
[1752329947375,7.32328,2946.3,2946.2,7.51125189]
[1752329947562,7.32328,2946.3,2946.2,6.3031]
[1752329948373,7.32328,2946.3,2946.2,6.9817]
[1752329948575,7.32328,2946.3,2946.2,7.51125189]
[1752329948774,6.6447,2946.3,2946.2,8.18985189]
[1752329948970,7.32318,2946.7,2946.6,3.1144]
[1752329949177,7.32318,2946.7,2946.6,6.3031]
[1752329950881,7.32318,2946.7,2946.6,6.98161]
[1752329951085,7.32318,2946.7,2946.6,6.3031]
[1752329951275,7.32318,2946.7,2946.6,6.98161]
[1752329951480,7.32318,2946.7,2946.6,6.3031]
[1752329952087,7.32318,2946.7,2946.6,6.98161]
[1752329952385,7.32318,2946.7,2946.6,6.3031]
[1752329954586,7.32318,2946.7,2946.6,6.98161]
[1752329954779,7.32318,2946.7,2946.6,3.1144]
[1752329954987,8.40672676,2946.7,2946.6,2.1306]
[1752329955286,7.32318,2946.7,2946.6,6.402]
[1752329955488,2.75071,2946.6,2946.5,1.20815189]
[1752329955682,2.75073,2946.5,2946.4,3.37785189]
[1752329955878,6.3212,2946.5,2946.4,8.25110189]
[1752329956082,0.67852,2946.6,2946.5,0.67852]
[1752329956283,0.67852,2946.6,2946.5,2.79404515]
[1752329956486,3.69002,2946.6,2946.5,4.28522515]
[1752329956781,6.99972,2946.6,2946.5,6.3644]
[1752329956981,6.99972,2946.6,2946.5,7.57282515]
[1752329958283,8.08326676,2946.6,2946.5,6.3644]
[1752329959683,0.9393,2946.4,2946.3,7.49302515]
[1752329959989,8.08329676,2946.4,2946.3,10.78062515]
[1752329960583,8.08329676,2946.4,2946.3,4.41622515]
[1752329960987,6.99975,2946.4,2946.3,10.78062515]
[1752329961188,6.99975,2946.4,2946.3,11.45920515]
[1752329961387,2.75075,2946.4,2946.3,10.25078]
[1752329961587,2.75075,2946.4,2946.3,9.5722]
[1752329961786,3.69005,2946.4,2946.3,10.78065413]
[1752329961988,6.99975,2946.4,2946.3,10.25078]
[1752329963287,6.99975,2946.4,2946.3,9.5722]
[1752329963688,6.99975,2946.4,2946.3,11.38853735]
[1752329964796,6.99975,2946.4,2946.3,12.06711735]
[1752329965089,6.99975,2946.4,2946.3,9.5722]
[1752329965292,6.99975,2946.4,2946.3,10.25078]
[1752329966490,6.99975,2946.4,2946.3,12.06711735]
[1752329967796,6.99975,2946.4,2946.3,11.38853735]
[1752329968696,6.99975,2946.4,2946.3,7.19383735]
[1752329969592,6.99975,2946.4,2946.3,8.77951735]
[1752329969793,6.99975,2946.4,2946.3,12.06711735]
[1752329970094,6.99975,2946.4,2946.3,1.81633735]
[1752329970297,6.3212,2946.3,2946.2,1.21058933]
[1752329970597,32.19232676,2946.3,2946.2,1.21058933]
[1752329970792,0.67862,2946.1,2946.0,1.81633735]
[1752329970998,2.75084,2946.0,2945.9,1.81633735]
[1752329971194,31.10684,2946.0,2945.9,3.98603735]
[1752329971392,32.19038676,2946.0,2945.9,2.1697]
[1752329971789,0.67869,2945.8,2945.7,8.70054009]
[1752329971992,5.3819,2945.8,2945.7,12.66685009]
[1752329972198,6.99989,2945.8,2945.7,10.25091]
[1752329972497,8.08343676,2945.8,2945.7,8.6651]
[1752329972690,8.08343676,2945.8,2945.5,6.3644]
[1752329972691,2.75094,2945.6,2945.5,6.3644]
[1752329972896,6.99994,2945.6,2945.5,6.3644]
[1752329973598,6.99994,2945.6,2945.5,7.04316]
[1752329974404,6.3212,2945.6,2945.5,7.04316]
[1752329974599,6.99994,2945.6,2945.5,7.04316]
[1752329976106,6.99994,2945.6,2945.5,6.3644]
[1752329977405,6.99994,2945.6,2945.5,5.4573]
[1752329979502,6.99994,2945.6,2945.5,6.3644]
[1752329980408,6.99994,2945.6,2945.5,7.04316]
[1752329982011,6.99994,2945.6,2945.5,6.3644]
[1752329982811,6.99994,2945.6,2945.5,7.04316]
[1752329983207,0.67874,2945.6,2945.5,7.04316]
[1752329984414,1.61804,2945.6,2945.5,7.04316]
[1752329985116,6.70214,2945.6,2945.5,7.04316]
[1752329987217,3.67134,2945.6,2945.5,7.04316]
[1752329987817,0.67874,2945.6,2945.5,7.04316]
[1752329988514,4.0061,2945.8,2945.5,6.3644]
[1752329988720,3.7095,2945.8,2945.7,4.68134182]
[1752329988917,1.65399,2945.8,2945.7,8.75324182]
[1752329989819,6.73809,2945.8,2945.7,8.75324182]
[1752329990221,3.70729,2945.8,2945.7,8.75324182]
[1752329990819,3.0286,2945.8,2945.7,8.75324182]
[1752329991021,6.73805,2946.0,2945.9,6.93807]
[1752329991222,6.73805,2946.0,2945.9,6.2594]
[1752329991423,6.0594,2946.0,2945.9,6.93807]
[1752329991718,6.738,2946.2,2946.1,3.106]
[1752329992020,6.738,2946.2,2946.1,6.2594]
[1752329994326,3.0286,2946.2,2946.1,6.93802]
[1752329994520,4.0061,2946.4,2946.1,1.81521845]
[1752329994824,6.73796,2946.4,2946.3,6.93798]
[1752329997025,6.0594,2946.4,2946.3,6.93798]
[1752329997215,2.73185,2946.4,2946.3,8.75319845]
[1752329997420,3.70715,2946.4,2946.3,8.75319845]
[1752329997621,3.0286,2946.4,2946.3,8.75319845]
[1752329998121,3.70715,2946.4,2946.3,8.75319845]
[1752329998719,6.73795,2946.4,2946.3,8.75319845]
[1752329999820,6.73795,2946.4,2946.3,6.93798]
[1752330000119,6.73795,2946.4,2946.3,6.2594]
[1752330000327,6.73795,2946.4,2946.3,8.07565593]
[1752330000522,3.70718,2946.3,2946.2,1.81625593]
[1752330000726,3.7072,2946.2,2946.1,1.81625593]
[1752330001026,6.738,2946.2,2946.1,1.81625593]
[1752330002022,6.73802,2946.1,2946.0,4.96965593]
[1752330002221,2.73194,2946.0,2945.9,8.07565593]
[1752330002422,6.73804,2946.0,2945.9,6.2594]
[1752330002618,6.73804,2946.0,2945.9,7.15790998]
[1752330002824,6.73804,2946.0,2945.9,6.2594]
[1752330003223,6.73804,2946.0,2945.7,3.2078]
[1752330003224,2.0533,2945.8,2945.7,3.2078]
[1752330003427,6.73811,2945.7,2945.6,5.3409]
[1752330003626,6.73811,2945.7,2945.6,6.2594]
[1752330004118,6.73811,2945.7,2945.6,6.93814]
[1752330004119,3.0286,2945.7,2945.6,6.93814]
[1752330004524,6.0594,2945.7,2945.6,6.93814]
[1752330004723,6.0594,2945.7,2945.6,9.36372575]
[1752330005028,6.0594,2945.7,2945.6,6.93814]
[1752330005224,6.0594,2945.7,2945.6,10.14594]
[1752330005424,6.73811,2945.7,2945.6,10.14594]
[1752330005924,6.0594,2945.7,2945.6,10.14594]
[1752330006430,6.73811,2945.7,2945.6,10.14594]
[1752330006832,3.0286,2945.7,2945.6,10.14594]
[1752330007228,6.73804,2946.0,2945.9,6.2594]
[1752330007430,6.73804,2946.0,2945.9,7.47125468]
[1752330008527,6.73804,2946.0,2945.9,8.14992468]
[1752330008930,6.0594,2946.0,2945.9,8.14992468]
[1752330009634,3.0286,2946.0,2945.9,8.14992468]
[1752330009830,2.0533,2946.2,2946.1,6.01952]
[1752330010034,6.73795,2946.4,2946.3,3.78458]
[1752330010233,6.73795,2946.4,2946.3,6.93798]
[1752330010234,6.0594,2946.4,2946.3,6.93798]
[1752330012532,6.0594,2946.4,2946.3,8.14998233]
[1752330013534,6.0594,2946.4,2946.3,7.23148233]
[1752330013535,7.14294676,2946.4,2946.3,7.23148233]
[1752330013835,7.14294676,2946.4,2946.3,8.14998233]
[1752330014035,6.0594,2946.4,2946.3,8.14998233]
[1752330014435,6.73795,2946.4,2946.3,8.14998233]
[1752330016137,6.73795,2946.4,2946.3,6.93798]
[1752330016338,6.73795,2946.4,2946.3,6.2594]
[1752330017938,6.73795,2946.4,2946.3,6.93798]
[1752330020640,6.73795,2946.4,2946.3,6.2594]
[1752330020838,6.73795,2946.4,2946.3,6.93798]
[1752330021340,6.73795,2946.4,2946.3,6.2594]
[1752330021842,6.73795,2946.4,2946.3,6.93798]
[1752330023137,6.73795,2946.4,2946.3,8.75576202]
[1752330023333,6.73795,2946.4,2946.3,8.07718202]
[1752330024743,6.73795,2946.4,2946.3,8.75576202]
[1752330026342,0.9753,2946.4,2946.3,8.75576202]
[1752330026546,7.00893,2946.6,2946.5,6.3252]
[1752330026844,7.00893,2946.6,2946.5,8.21552578]
[1752330027645,7.00893,2946.6,2946.5,7.00373]
[1752330030351,7.00893,2946.6,2946.5,6.3252]
[1752330031050,7.00893,2946.6,2946.5,7.00373]
[1752330031951,7.00893,2946.6,2946.5,6.3252]
[1752330032953,7.00893,2946.6,2946.5,7.00373]
[1752330033253,7.00893,2946.6,2946.5,8.21463578]
[1752330033448,7.00893,2946.6,2946.5,7.53610578]
[1752330034053,7.00893,2946.6,2946.5,8.21463578]
[1752330034253,3.0939,2946.6,2946.5,8.21463578]
[1752330034457,3.0939,2946.6,2946.5,8.82151202]
[1752330034650,3.77241,2946.6,2946.5,8.82151202]
[1752330034954,3.0939,2946.6,2946.5,8.82151202]
[1752330035359,6.3304,2946.9,2946.8,7.00365]
[1752330035856,0.67844,2946.9,2946.8,8.21463922]
[1752330036046,1.65244,2946.9,2946.8,8.21463922]
[1752330036248,3.77234,2946.9,2946.8,8.21463922]
[1752330036557,7.00884,2946.9,2946.8,8.21463922]
[1752330038856,7.00884,2946.9,2946.8,7.53618922]
[1752330039158,7.00884,2946.9,2946.8,6.3252]
[1752330040060,7.00884,2946.9,2946.8,7.00366]
[1752330040649,7.00884,2946.9,2946.8,6.10406]
[1752330040853,2.79845,2946.4,2946.3,2.42558575]
[1752330041054,0.67864,2946.0,2945.9,2.42558575]
[1752330041356,8.09258676,2946.0,2945.9,5.48238575]
[1752330041661,7.00904,2946.0,2945.9,8.75078575]
[1752330042053,9.17613352,2946.0,2945.9,2.42558575]
[1752330042254,7.00914,2945.6,2945.5,3.03198219]
[1752330042561,6.03518,2945.4,2945.3,3.03198219]
[1752330042762,8.09272676,2945.4,2945.3,3.03198219]
[1752330043961,8.09272676,2945.4,2945.3,9.31598219]
[1752330044159,8.09272676,2945.4,2945.3,6.284]
[1752330044763,7.00918,2945.4,2945.3,6.284]
[1752330045261,27.66634,2945.6,2945.5,2.0474]
[1752330045562,6.91214,2945.6,2945.5,6.2317]
[1752330049256,7.99568676,2945.6,2945.5,5.2746]
[1752330049461,6.92698,2945.4,2945.3,2.0474]
[1752330049660,6.92703,2945.2,2945.1,9.4395]
[1752330050265,6.92703,2945.2,2945.1,6.2317]
[1752330050562,0.6789,2944.9,2944.8,4.1843]
[1752330050763,6.9271,2944.9,2944.8,6.2317]
[1752330051362,6.9271,2944.9,2944.8,5.2746]
[1752330051562,10.1349,2944.9,2944.8,5.2746]
[1752330052059,4.90507,2944.9,2944.3,0.9571]
[1752330052261,3.76041,2944.4,2944.3,3.0045]
[1752330052664,3.1668,2944.6,2944.3,6.2317]
[1752330052858,0.67896,2944.7,2944.6,6.2317]
[1752330053059,9.456,2944.9,2944.8,6.2317]
[1752330053265,10.1349,2944.9,2944.8,6.2317]
[1752330053965,6.9681,2944.9,2944.8,6.2317]
[1752330054267,10.1349,2944.9,2944.8,6.2317]
[1752330054966,10.1349,2944.9,2944.8,6.91062]
[1752330055165,6.2482,2944.9,2944.8,6.91062]
[1752330055962,6.9271,2944.9,2944.8,6.2317]
[1752330057968,6.2482,2944.9,2944.8,6.91062]
[1752330058168,6.9271,2944.9,2944.8,6.91062]
[1752330058572,6.9271,2944.9,2944.6,2.0474]
[1752330058573,6.92714,2944.7,2944.6,2.0474]
[1752330058870,8.01068676,2944.7,2944.6,2.0474]
[1752330059067,3.76037,2944.6,2944.5,3.2078]
[1752330059266,6.2482,2944.5,2944.3,0.9571]
[1752330059466,3.76041,2944.4,2944.3,2.0474]
[1752330059666,6.92721,2944.4,2944.3,2.0474]
[1752330060267,2.77164,2944.3,2944.1,5.13829]
[1752330060467,2.77164,2944.3,2944.0,5.2746]
[1752330060468,3.76048,2944.1,2944.0,5.2746]
[1752330060667,8.4672,2944.5,2944.4,5.2746]
[1752330060868,5.93839,2944.5,2944.4,6.2317]
[1752330061069,5.93839,2944.5,2944.4,6.91071]
[1752330061363,3.0814,2944.5,2944.4,6.91071]
[1752330061765,3.76039,2944.5,2944.4,6.91071]
[1752330061972,6.92719,2944.5,2944.4,6.91071]
[1752330062161,24.97254676,2944.8,2944.7,2.72634]
[1752330062162,30.1372,2944.8,2944.7,2.72634]
[1752330062365,30.81614,2944.8,2944.7,6.2317]
[1752330062566,6.92712,2944.8,2944.7,6.2317]
[1752330063071,6.92712,2944.8,2944.7,5.2746]
[1752330063272,8.01066676,2944.8,2944.7,5.2746]
[1752330063568,8.01066676,2944.8,2944.7,2.0474]
[1752330067169,8.01066676,2944.8,2944.7,5.2746]
[1752330067678,8.01066676,2944.8,2944.7,6.2317]
[1752330069272,0.9888,2945.0,2944.9,0.6789]
[1752330069479,3.0814,2945.0,2944.9,6.9106]
[1752330069675,3.1668,2945.4,2945.2,2.0474]
[1752330069874,2.77138,2945.4,2945.3,6.91051]
[1752330070172,6.92698,2945.4,2945.3,6.91051]
[1752330070374,6.92698,2945.4,2945.3,6.2317]
[1752330070569,6.92698,2945.4,2945.3,6.91051]
[1752330071279,6.92698,2945.4,2945.3,6.2317]
[1752330071477,6.92698,2945.4,2945.3,6.91051]
[1752330071478,6.2482,2945.4,2945.3,6.91051]
[1752330071875,3.0814,2945.4,2945.3,6.91051]
[1752330072075,3.76018,2945.4,2945.3,6.91051]
[1752330072375,24.55277,2945.5,2945.4,0.67878]
[1752330072572,3.0814,2945.7,2945.6,3.68324]
[1752330072778,3.0814,2945.7,2945.3,2.78052676]
[1752330072779,5.3004,2945.8,2945.7,3.68321]
[1752330073073,5.3004,2945.8,2945.7,6.91041]
[1752330073472,5.97909,2945.8,2945.7,6.91041]
[1752330073672,5.97909,2945.8,2945.7,6.2317]
[1752330073878,6.96789,2945.8,2945.7,6.2317]
[1752330074075,9.85899,2945.8,2945.7,6.2317]
[1752330074872,9.85899,2945.8,2945.7,6.91041]
[1752330075275,9.1803,2945.8,2945.7,6.91041]
[1752330075882,9.85899,2945.8,2945.7,6.91041]
[1752330076480,9.85899,2945.8,2945.7,6.2317]
[1752330076780,9.85899,2945.8,2945.7,6.91041]
[1752330077077,6.65568,2946.0,2945.9,5.9852]
[1752330078670,3.76457,2945.9,2945.8,2.64448]
[1752330078874,6.65567,2945.9,2945.8,2.64448]
[1752330079482,5.977,2945.9,2945.8,2.64448]
[1752330079876,6.65567,2945.9,2945.8,2.64448]
[1752330080280,5.977,2945.9,2945.8,2.64448]
[1752330080678,6.65563,2946.1,2946.0,2.65925]
[1752330080981,5.977,2946.1,2946.0,2.65925]
[1752330081181,6.65562,2946.1,2946.0,2.8854]
[1752330081385,6.65562,2946.1,2946.0,1.9806]
[1752330081573,6.65562,2946.1,2946.0,2.8854]
[1752330082580,0.67866,2946.0,2945.9,1.9806]
[1752330082773,6.65566,2946.0,2945.9,1.9806]
[1752330083183,6.65565,2946.0,2945.9,2.65927]
[1752330083383,6.65565,2946.0,2945.9,1.9806]
[1752330083681,6.65565,2946.0,2945.9,2.65927]
[1752330084778,6.65565,2946.0,2945.9,1.9806]
[1752330084982,1.6965,2946.3,2945.7,1.9806]
[1752330084983,3.7646,2945.8,2945.7,1.9806]
[1752330085185,5.66101,2945.7,2945.6,5.13829]
[1752330085384,6.65571,2945.7,2945.6,2.65934]
[1752330086379,5.977,2945.7,2945.6,2.65934]
[1752330086584,5.977,2945.7,2945.6,3.56414]
[1752330086784,6.65571,2945.7,2945.6,2.65934]
[1752330087185,5.977,2945.7,2945.6,2.65934]
[1752330089386,6.65571,2945.7,2945.6,2.65934]
[1752330090687,5.977,2945.7,2945.6,2.65934]
[1752330090988,5.977,2945.7,2945.6,3.56414]
[1752330091789,6.65571,2945.7,2945.6,3.56414]
[1752330092892,5.977,2945.7,2945.6,3.56414]
[1752330093293,5.977,2945.7,2945.6,5.51354]
[1752330094692,3.2078,2946.4,2946.3,0.67858]
[1752330094891,8.86867,2946.4,2946.3,0.67858]
[1752330095295,9.86337,2946.4,2946.3,0.67858]
[1752330095590,9.1848,2946.4,2946.3,2.65918]
[1752330095798,9.1848,2946.4,2946.3,3.56098]
[1752330095992,9.1848,2946.4,2946.3,5.51038]
[1752330096393,5.977,2946.4,2946.3,5.51038]
[1752330096604,9.1848,2946.7,2946.6,2.65911]
[1752330096891,9.1848,2946.7,2946.6,3.56091]
[1752330098191,9.86328,2946.7,2946.6,1.9806]
[1752330098496,9.86328,2946.7,2946.6,2.65911]
[1752330098692,9.1848,2946.7,2946.6,2.65911]
[1752330099197,9.1848,2946.7,2946.6,3.56091]
[1752330099387,5.977,2946.7,2946.6,5.51031]
[1752330100992,4.9823,2946.9,2946.8,3.93]
[1752330101199,4.9823,2946.9,2946.8,4.60846]
[1752330101200,5.977,2946.9,2946.8,4.60846]
[1752330101698,5.977,2946.9,2946.8,5.51026]
[1752330102395,5.977,2947.2,2947.1,3.56078]
[1752330102596,6.65538,2947.2,2947.1,3.56078]
[1752330103194,6.65538,2947.2,2947.1,2.8824]
[1752330103399,2.8911,2947.2,2947.1,6.54952091]
[1752330103598,6.65522,2947.4,2947.3,4.7873]
[1752330103800,6.65522,2947.4,2947.3,1.9806]
[1752330106403,1.08383091,2947.5,2947.0,7.9316]
[1752330106404,6.50589,2947.1,2947.0,7.9316]
[1752330106601,5.8275,2947.1,2947.0,10.7372]
[1752330106901,5.8275,2947.4,2947.3,4.69813]
[1752330107104,6.50582,2947.4,2947.3,4.9205]
[1752330107505,6.50582,2947.4,2947.3,5.59885]
[1752330108010,6.50582,2947.4,2947.3,4.9205]
[1752330108407,6.50582,2947.4,2947.3,5.59885]
[1752330108807,6.50582,2947.4,2947.3,4.9205]
[1752330109110,6.50582,2947.4,2947.3,5.59885]
[1752330109808,6.50582,2947.4,2947.3,4.9205]
[1752330110008,6.50582,2947.4,2947.3,5.59885]
[1752330110209,6.50582,2947.4,2947.3,4.9205]
[1752330110704,6.50582,2947.4,2947.3,3.0156]
[1752330111106,6.50582,2947.4,2947.3,2.1149]
[1752330111612,6.50582,2947.4,2947.3,3.69395]
[1752330112113,2.891,2947.7,2947.6,5.59878]
[1752330112709,3.8329,2948.2,2947.9,4.0198]
[1752330112905,6.50568,2948.0,2947.9,3.0156]
[1752330113305,6.50568,2948.0,2947.9,2.1149]
[1752330113506,2.67283,2947.8,2947.7,7.25319]
[1752330113717,6.50573,2947.8,2947.7,7.25319]
[1752330115011,7.58956091,2947.8,2947.7,7.25319]
[1752330115913,7.58956091,2947.8,2947.7,5.13829]
[1752330117415,6.50573,2947.8,2947.7,7.25319]
[1752330117613,4.8856,2947.8,2947.7,2.1149]
[1752330117916,5.56374,2948.2,2948.1,3.0156]
[1752330118117,6.50564,2948.2,2948.1,2.1149]
[1752330118518,0.67816,2948.1,2948.0,3.2078]
[1752330118713,1.9946,2947.9,2947.8,3.69382]
[1752330118913,5.8275,2948.2,2948.1,5.59865]
[1752330119120,6.50564,2948.2,2948.1,2.79306]
[1752330119326,5.8275,2948.2,2948.1,5.59866]
[1752330119823,9.0353,2948.4,2948.3,3.69372]
[1752330120818,9.71339,2948.4,2948.3,3.0156]
[1752330121025,9.71339,2948.4,2948.3,2.1149]
[1752330121220,9.0353,2948.4,2948.3,2.79302]
[1752330121615,9.71339,2948.4,2948.3,2.1149]
[1752330122827,9.71339,2948.4,2948.3,2.79302]
[1752330123216,9.71339,2948.4,2948.3,2.1149]
[1752330123722,9.71339,2948.4,2948.3,2.79302]
[1752330124220,9.71339,2948.4,2948.3,5.59862]
[1752330124422,9.71339,2948.4,2948.3,3.69372]
[1752330124829,6.50559,2948.4,2948.3,3.0156]
[1752330125025,6.50559,2948.4,2948.3,2.79302]
[1752330125827,6.50559,2948.4,2948.3,2.1149]
[1752330126525,6.50562,2948.3,2948.2,5.13829]
[1752330126830,6.50562,2948.3,2947.8,4.1085]
[1752330126831,6.50566,2948.1,2948.0,2.79308]
[1752330127725,6.50568,2948.0,2947.9,5.13829]
[1752330128525,6.50568,2948.0,2947.9,7.25319]
[1752330129132,6.50568,2948.0,2947.9,5.13829]
[1752330130227,5.8275,2948.0,2947.9,7.9314]
[1752330130526,6.50568,2948.0,2947.9,9.23772091]
[1752330130726,6.50568,2948.0,2947.9,8.15389]
[1752330131121,6.50568,2948.0,2947.9,7.25319]
[1752330132633,6.50568,2948.0,2947.9,2.1149]
[1752330135634,6.50568,2948.0,2947.9,3.69841]
[1752330135834,6.50568,2948.0,2947.9,4.10403091]
[1752330136035,6.50568,2948.0,2947.9,4.78224091]
[1752330136335,5.9897,2949.0,2948.9,2.65868]
[1752330136932,6.66765,2949.0,2948.9,2.65868]
[1752330137134,2.72508,2948.9,2948.8,3.2078]
[1752330137334,6.66768,2948.9,2948.8,3.2078]
[1752330137534,6.66768,2948.9,2948.8,5.8665]
[1752330137535,5.9897,2948.9,2948.8,5.8665]
[1752330137736,6.66768,2948.9,2948.8,5.8665]
[1752330138638,6.66768,2948.9,2948.8,5.1885]
[1752330138836,6.66768,2948.9,2948.8,5.8665]
[1752330139337,6.66768,2948.9,2948.8,5.1885]
[1752330139537,5.9897,2948.9,2948.8,5.8665]
[1752330139732,5.9897,2948.9,2948.8,5.1885]
[1752330139733,6.66768,2948.9,2948.8,5.1885]
[1752330140736,6.66768,2948.9,2948.8,3.2078]
[1752330142533,6.66768,2948.9,2948.4,1.80310567]
[1752330142534,0.67807,2948.5,2948.4,1.80310567]
[1752330142738,6.66779,2948.4,2948.3,2.65882]
[1752330143236,6.66779,2948.4,2948.3,1.9807]
[1752330143534,6.66779,2948.4,2948.3,2.65882]
[1752330143740,6.66779,2948.4,2948.3,1.9807]
[1752330143943,0.67812,2948.3,2948.2,3.2078]
[1752330144144,6.66782,2948.3,2948.2,5.1885]
[1752330146838,6.66782,2948.3,2948.2,3.2078]
[1752330147138,3.64133,2947.8,2947.7,25.6907]
[1752330147442,5.9897,2947.8,2947.7,29.68419169]
[1752330147737,5.9897,2947.8,2947.7,27.27425]
[1752330148338,5.9897,2947.8,2947.7,3.56425]
[1752330149442,5.9897,2947.8,2947.7,5.3712032]
[1752330150042,6.66793,2947.8,2947.7,4.4659032]
[1752330150641,5.9897,2947.8,2947.7,4.4659032]
[1752330151243,6.66793,2947.8,2947.7,4.4659032]
[1752330151445,6.66793,2947.8,2947.7,1.8069532]
[1752330151639,6.66793,2947.8,2947.6,5.6930132]
[1752330151843,6.66795,2947.7,2947.6,5.0147532]
[1752330152541,6.66795,2947.7,2947.6,5.6930332]
[1752330152947,6.66795,2947.7,2947.6,3.2078]
[1752330153141,2.7254,2947.5,2947.4,1.8069532]
[1752330153342,6.668,2947.5,2947.4,1.8069532]
[1752330154050,2.72542,2947.4,2947.3,5.0147532]
[1752330154248,5.9897,2947.4,2947.3,8.5791032]
[1752330154542,5.9897,2947.4,2947.3,10.3074032]
[1752330154746,2.9631,2947.9,2947.6,2.65898]
[1752330155048,9.1975,2948.4,2948.3,0.67812]
[1752330155248,3.70472,2948.3,2948.2,0.67812]
[1752330155444,6.66782,2948.3,2948.2,0.67812]
[1752330158550,5.9897,2948.3,2948.2,0.67812]
[1752330158745,5.9897,2948.3,2948.2,2.65882]
[1752330158952,5.9897,2948.3,2948.2,3.56792]
[1752330160954,5.9897,2948.3,2948.2,4.65016858]
[1752330161156,3.9426,2948.3,2948.2,6.29306858]
[1752330161356,2.9631,2948.3,2948.2,6.29306858]